bitfinex/quotes_ETHUSD_20220219
["timestamp","ask_amount","ask_price","bid_price","bid_amount"]
[1645280565736,6.6339,2732.6,2731.8,1.20366757]
[1645280565937,0.33998728,2732.5,2731.8,1.20366757]
[1645280566538,0.59722042,2732.2,2731.8,1.20366757]
[1645280566737,0.59722042,2732.2,2731.9,1.20132855]
[1645280566738,0.33998728,2732.1,2731.9,1.20132855]
[1645280566941,0.33998728,2732.1,2731.4,0.00233902]
[1645280567737,0.00320095,2731.9,2731.4,0.51144378]
[1645280567938,0.00320095,2731.9,2731.5,1.20464471]
[1645280568786,0.33998728,2732.1,2731.5,1.20464471]
[1645280568987,0.00320096,2731.8,2731.6,0.00233902]
[1645280569891,0.33998728,2732.1,2731.6,0.00233902]
[1645280570290,0.00320096,2731.8,2731.6,0.00233902]
[1645280571190,0.34000242,2732.5,2731.6,0.00233902]
[1645280571391,0.00319353,2731.8,2731.6,0.00233902]
[1645280572438,0.34000242,2732.1,2731.6,0.00233902]
[1645280572635,0.00319353,2731.8,2731.6,0.00233902]
[1645280572837,0.00319353,2731.8,2731.6,1.20705018]
[1645280573033,0.00319353,2731.8,2731.7,1.20471116]
[1645280573433,0.00319353,2731.8,2731.5,1.20471116]
[1645280573634,0.34006924,2732.0,2731.5,1.20471116]
[1645280573934,0.34326276,2731.9,2731.6,0.00233902]
[1645280574132,0.00319352,2731.9,2731.6,0.00233902]
[1645280574833,0.58280432,2732.1,2731.6,0.00233902]
[1645280575037,0.00319519,2731.9,2731.6,0.00233902]
[1645280575635,3.6829,2732.5,2731.9,0.00178652]
[1645280575835,2.14697,2732.6,2731.9,0.00178652]
[1645280575836,0.34027873,2732.4,2731.9,0.00178652]
[1645280576082,0.34027873,2732.3,2731.9,0.00178652]
[1645280576285,0.34027873,2732.2,2731.9,0.00178652]
[1645280576484,0.34027873,2732.1,2731.9,0.00178652]
[1645280576683,0.34027873,2732.0,2731.9,0.00178652]
[1645280577283,0.34027873,2732.2,2731.9,0.00178652]
[1645280577485,0.34027873,2732.1,2731.9,0.00178652]
[1645280577689,0.34027873,2732.0,2731.9,0.00178652]
[1645280578085,1.25592873,2732.2,2731.9,0.00178652]
[1645280578286,3.84027873,2732.1,2731.9,0.00178652]
[1645280578484,0.34027873,2732.0,2731.9,0.00178652]
[1645280579587,0.34027873,2732.1,2731.9,0.00178652]
[1645280579847,0.34027873,2732.0,2731.9,0.00178652]
[1645280580252,0.0033216,2732.1,2731.9,0.00178652]
[1645280580848,0.34027873,2732.2,2731.9,0.00178652]
[1645280581249,0.00332158,2732.1,2731.9,0.00178652]
[1645280581450,0.00332158,2732.1,2731.9,1.20649768]
[1645280581650,0.00332158,2732.1,2732.0,1.20471116]
[1645280581850,0.34027873,2732.2,2732.0,1.20471116]
[1645280582050,0.34027873,2732.2,2731.9,0.00178652]
[1645280582253,0.00332158,2732.1,2731.9,0.00178652]
[1645280583052,0.34027873,2732.2,2731.9,0.00178652]
[1645280583484,0.00332159,2732.1,2731.9,0.00178652]
[1645280584284,0.34027873,2732.2,2731.9,0.00178652]
[1645280584686,0.00332159,2732.1,2731.9,0.00178652]
[1645280585587,0.34027873,2732.2,2731.9,0.00178652]
[1645280585788,0.00332159,2732.1,2731.9,0.00178652]
[1645280586390,0.00332159,2732.1,2731.9,1.20894137]
[1645280586594,0.00332159,2732.1,2732.0,1.20715485]
[1645280586794,0.34027873,2732.1,2732.0,1.20715485]
[1645280586991,0.34360207,2732.1,2731.9,0.00178652]
[1645280587233,0.34027873,2732.0,2731.9,0.00178652]
[1645280588037,1.31080261,2732.3,2731.9,0.00178652]
[1645280588038,0.34027873,2732.2,2731.9,0.00178652]
[1645280588235,0.00332335,2732.1,2731.9,0.00178652]
[1645280589235,0.34027873,2732.2,2731.9,0.00178652]
[1645280589439,0.00332334,2732.1,2731.9,0.00178652]
[1645280589636,0.91895334,2732.1,2731.9,0.00178652]
[1645280589835,0.34027873,2732.0,2731.9,0.00178652]
[1645280591284,0.00332335,2732.1,2731.9,0.00178652]
[1645280591484,0.34360208,2732.1,2731.9,0.00178652]
[1645280591682,0.34027873,2732.0,2731.9,0.00178652]
[1645280592282,0.00332335,2732.1,2731.9,0.00178652]
[1645280592785,0.34027873,2732.2,2731.9,0.00178652]
[1645280592985,0.00332334,2732.1,2731.9,1.20894137]
[1645280593187,0.00332334,2732.1,2732.0,1.20715485]
[1645280593382,0.00332334,2732.1,2731.9,0.00178652]
[1645280593983,0.34027873,2732.2,2731.9,0.00178652]
[1645280594184,0.00332334,2732.1,2731.9,0.00178652]
[1645280594385,0.00332334,2732.1,2731.9,0.00412554]
[1645280594584,0.00332334,2732.1,2731.9,0.00178652]
[1645280594832,1.61184848,2732.1,2731.9,0.00178652]
[1645280595033,0.34027873,2732.0,2731.9,0.00178652]
[1645280596031,0.69619848,2732.1,2731.9,0.00178652]
[1645280596431,0.69287514,2732.1,2731.9,0.00178652]
[1645280596633,0.34027873,2732.0,2731.9,0.00178652]
[1645280597031,0.00332334,2732.1,2731.9,0.00178652]
[1645280597532,0.34027873,2732.2,2731.9,0.00178652]
[1645280597934,0.00332334,2732.1,2731.9,0.00178652]
[1645280598238,0.69619848,2732.1,2731.9,0.00178652]
[1645280598485,0.34027873,2732.0,2731.9,0.00178652]
[1645280598681,0.00332334,2732.1,2731.9,0.00178652]
[1645280598885,1.03315387,2732.2,2731.9,0.00178652]
[1645280599186,0.00332334,2732.1,2731.9,0.00178652]
[1645280599884,0.00332334,2732.1,2731.9,1.20894137]
[1645280600084,1.03315387,2732.2,2732.0,1.20715485]
[1645280600285,0.34360207,2732.1,2731.9,0.00178652]
[1645280600484,0.34027873,2732.0,2731.9,0.00178652]
[1645280600785,0.34027873,2732.0,2731.9,0.00068569]
[1645280600786,1.03315387,2732.0,2731.9,0.00068569]
[1645280600994,3.84027873,2732.0,2731.9,0.00068569]
[1645280601186,4.77110178,2732.0,2731.9,0.00068569]
[1645280601990,3.84027873,2732.0,2731.9,1.21073766]
[1645280602234,5.35599873,2732.0,2731.9,1.21073766]
[1645280602443,6.50838574,2732.0,2731.9,0.00068569]
[1645280602739,6.88960634,2732.0,2731.9,0.00068569]
[1645280602941,5.75599873,2732.0,2731.9,0.00068569]
[1645280603139,6.05599873,2732.0,2731.9,0.00068569]
[1645280603338,6.35599873,2732.0,2731.9,0.00068569]
[1645280603544,6.52299571,2732.0,2731.9,0.00068569]
[1645280604341,5.75599873,2732.0,2731.9,0.00068569]
[1645280604542,4.75599873,2732.0,2731.9,0.00068569]
[1645280604742,6.35599873,2732.0,2731.9,0.00068569]
[1645280605342,6.53194722,2732.0,2731.9,0.00068569]
[1645280605982,17.66194722,2732.0,2731.9,0.00068569]
[1645280606683,19.85594722,2732.0,2731.9,0.00068569]
[1645280606883,20.68955483,2732.0,2731.9,0.00068569]
[1645280607483,9.55955483,2732.0,2731.9,0.00068569]
[1645280608487,10.25606661,2732.0,2731.9,0.00068569]
[1645280608888,8.06206661,2732.0,2731.9,0.00068569]
[1645280609087,7.05251051,2732.0,2731.9,0.00068569]
[1645280610132,3.55251051,2732.0,2731.9,0.00068569]
[1645280610534,2.95251051,2732.0,2731.9,0.00068569]
[1645280610836,1.95251051,2732.0,2731.9,0.00068569]
[1645280611032,1.03679051,2732.0,2731.9,0.00068569]
[1645280611236,0.69651178,2732.0,2731.9,0.00068569]
[1645280611431,1.03679051,2732.0,2731.9,0.00068569]
[1645280612336,0.34027873,2732.0,2731.9,0.00068569]
[1645280612538,0.00307113,2732.1,2731.9,0.00068569]
[1645280612734,0.34027873,2732.0,2731.9,0.00068569]
[1645280612935,0.00307113,2732.1,2731.9,0.00068569]
[1645280613138,0.34027873,2732.2,2731.9,0.00068569]
[1645280613334,0.69651178,2732.2,2731.9,0.00068569]
[1645280613589,0.66229205,2732.0,2731.9,0.00068569]
[1645280613794,1.00257078,2732.0,2731.9,0.00068569]
[1645280615292,0.34027873,2732.0,2731.9,0.00068569]
[1645280615692,0.34027873,2732.2,2731.9,0.00068569]
[1645280615995,0.34329627,2732.1,2731.9,0.00068569]
[1645280616193,0.34027873,2732.0,2731.9,0.00068569]
[1645280616398,0.00301754,2732.1,2731.9,0.55169474]
[1645280616593,0.00301754,2732.1,2732.0,1.20153279]
[1645280616793,0.34027873,2732.4,2732.0,1.20153279]
[1645280616992,0.00301753,2732.1,2732.0,1.20153279]
[1645280617935,0.34027873,2732.4,2732.0,1.20153279]
[1645280617936,1.03679051,2732.4,2732.0,1.20153279]
[1645280618132,0.34027873,2732.3,2732.0,1.20153279]
[1645280618337,0.3432975,2732.2,2732.0,1.20153279]
[1645280618738,0.35612386,2732.1,2732.0,1.20153279]
[1645280619539,0.35612386,2732.1,2731.9,0.00068569]
[1645280619740,0.3483582,2732.0,2731.9,0.00068569]
[1645280620141,0.99080192,2732.0,2731.9,0.00068569]
[1645280620344,0.3483582,2732.0,2731.9,0.00068569]
[1645280629988,6.0005289,2731.9,2731.6,0.00233902]
[1645280630188,6.0005289,2731.9,2731.4,1.20153279]
[1645280630189,0.3483582,2731.8,2731.4,1.20153279]
[1645280630388,0.3483582,2731.8,2731.5,0.00233902]
[1645280631987,0.3483582,2731.7,2731.6,0.62898723]
[1645280632234,0.0005289,2731.9,2731.6,1.83052002]
[1645280632435,0.0005289,2731.9,2731.7,1.20160873]
[1645280635144,0.3483582,2732.0,2731.9,0.00086396]
[1645280652802,0.3483582,2732.0,2731.9,1.20247269]
[1645280653005,0.3483582,2732.0,2731.9,0.00086396]
[1645280654411,0.3483582,2732.0,2731.9,1.20247269]
[1645280656038,0.93082305,2732.6,2732.1,8.5]
[1645280656242,2.92913,2733.0,2732.2,10.06883]
[1645280656243,0.69628149,2732.8,2732.2,10.06883]
[1645280656642,0.93082305,2733.1,2732.2,2.56244466]
[1645280656643,0.69628149,2733.1,2732.2,2.56244466]
[1645280656842,0.69628149,2733.0,2732.2,3.45514466]
[1645280657140,0.69628149,2733.1,2733.0,0.54996967]
[1645280657339,0.69628149,2733.1,2733.0,0.28449369]
[1645280657937,0.93082305,2733.4,2733.0,0.28449369]
[1645280657938,0.69628149,2733.2,2733.0,0.28449369]
[1645280658595,0.69628149,2733.1,2733.0,0.28449369]
[1645280658797,0.69628149,2733.3,2733.0,0.28449369]
[1645280659396,1.37941441,2733.8,2733.0,0.28449369]
[1645280659397,0.69628149,2733.5,2733.0,0.81149369]
[1645280659796,0.69628149,2733.6,2733.0,1.41149369]
[1645280659994,0.69628149,2733.6,2733.0,0.81149369]
[1645280660398,0.00332302,2733.4,2733.0,1.11149369]
[1645280661295,0.69628149,2733.6,2733.0,1.11149369]
[1645280661496,0.00332303,2733.3,2733.0,1.11149369]
[1645280662344,0.64960452,2733.7,2733.0,1.11149369]
[1645280663438,0.64960452,2733.7,2733.0,0.81149369]
[1645280663641,0.64960452,2733.7,2733.2,0.03689283]
[1645280664038,0.93082305,2733.9,2733.5,0.52445861]
[1645280664440,1.62632386,2734.0,2733.5,0.52445861]
[1645280664841,0.69550081,2734.0,2733.5,0.52445861]
[1645280665042,0.00332289,2733.9,2733.5,0.52445861]
[1645280665442,0.00332289,2733.9,2733.2,0.03689283]
[1645280665995,0.93082305,2734.1,2733.2,0.03689283]
[1645280666196,0.93082305,2734.0,2733.2,0.03689283]
[1645280666397,0.00332294,2733.7,2733.2,0.03689283]
[1645280666594,0.50364338,2733.5,2733.2,0.03689283]
[1645280667594,0.50696637,2733.5,2733.2,0.03689283]
[1645280668394,0.50364338,2733.5,2733.2,0.03689283]
[1645280668795,0.50696637,2733.5,2733.2,0.03689283]
[1645280668992,0.50696637,2733.5,2732.7,0.65488764]
[1645280669196,0.50696637,2733.5,2732.7,0.95488764]
[1645280669592,0.50364338,2733.5,2732.7,0.95488764]
[1645280669843,0.00332281,2733.4,2732.6,1.53859652]
[1645280670645,0.00332281,2733.4,2732.6,2.14694317]
[1645280670848,0.50364338,2733.5,2732.6,2.14694317]
[1645280671048,0.00332272,2733.4,2732.6,2.14694317]
[1645280672046,0.50364338,2733.5,2732.6,2.14694317]
[1645280672252,0.50364338,2733.5,2732.6,0.03659652]
[1645280672253,0.00332272,2733.4,2732.6,0.03659652]
[1645280672451,0.69262472,2733.2,2732.6,0.03659652]
[1645280672653,0.69262472,2733.0,2732.6,0.03659652]
[1645280673048,0.69262472,2732.8,2732.6,0.03659652]
[1645280673496,0.69262472,2732.8,2732.2,0.2783]
[1645280673694,0.66812396,2732.4,2732.2,0.2783]
[1645280674699,3.5,2732.3,2732.2,0.2783]
[1645280674899,3.5,2732.3,2731.9,0.00086396]
[1645280675095,3.5,2732.2,2731.9,0.00086396]
[1645280675297,1.0,2732.1,2731.9,0.00086396]
[1645280675494,3.5,2732.0,2731.9,0.00086396]
[1645280675697,1.0,2732.1,2731.9,0.00086396]
[1645280676104,1.0,2732.2,2731.9,0.00086396]
[1645280676302,0.35420068,2732.0,2731.9,0.00086396]
[1645280677442,1.35420068,2732.0,2731.9,0.00086396]
[1645280677643,4.85420068,2732.0,2731.9,0.00086396]
[1645280680844,5.15420068,2732.0,2731.9,0.00086396]
[1645280681300,5.15420068,2732.0,2731.9,6.396e-05]
[1645280681496,7.44251904,2732.0,2731.9,6.396e-05]
[1645280682196,12.44251904,2732.0,2731.9,6.396e-05]
[1645280682396,7.44251904,2732.0,2731.9,6.396e-05]
[1645280682796,8.11241874,2732.0,2731.9,6.396e-05]
[1645280682995,7.62541904,2732.0,2731.9,6.396e-05]
[1645280684850,8.19979546,2732.0,2731.9,6.396e-05]
[1645280685250,14.05053102,2732.0,2731.9,6.396e-05]
[1645280685450,7.62541904,2732.0,2731.9,6.396e-05]
[1645280686354,6.93279432,2732.0,2731.9,6.396e-05]
[1645280686556,7.62541904,2732.0,2731.9,6.396e-05]
[1645280686952,8.22673905,2732.0,2731.9,6.396e-05]
[1645280687151,7.35121433,2732.0,2731.9,6.396e-05]
[1645280687353,8.04383905,2732.0,2731.9,6.396e-05]
[1645280687754,7.44251904,2732.0,2731.9,6.396e-05]
[1645280688592,6.74989432,2732.0,2731.9,6.396e-05]
[1645280688792,7.44630624,2732.0,2731.9,6.396e-05]
[1645280688991,6.79117673,2732.0,2731.9,6.396e-05]
[1645280690095,7.45262326,2732.0,2731.9,6.396e-05]
[1645280690293,6.79117673,2732.0,2731.9,6.396e-05]
[1645280690602,0.39548309,2732.0,2731.9,6.396e-05]
[1645280691194,0.04128241,2732.0,2731.9,6.396e-05]
[1645280692948,0.39450692,2732.0,2731.9,6.396e-05]
[1645280693752,0.04128241,2732.0,2731.9,6.396e-05]
[1645280694455,0.04128241,2732.0,2731.9,3.50006396]
[1645280694650,0.04128241,2732.0,2731.9,6.396e-05]
[1645280696103,0.04128241,2732.0,2731.9,0.52706396]
[1645280696300,0.04128241,2732.0,2731.9,1.71147552]
[1645280696301,8.241e-05,2732.0,2731.9,1.71147552]
[1645280696501,8.241e-05,2732.0,2731.9,2.01147552]
[1645280696703,8.241e-05,2732.0,2731.9,1.71147552]
[1645280696904,8.241e-05,2732.0,2731.9,2.01147552]
[1645280697300,3.1072,2733.1,2732.5,0.58134626]
[1645280697301,3.5,2733.0,2732.5,0.58134626]
[1645280697500,3.74162486,2733.1,2732.5,0.58134626]
[1645280697501,0.35330567,2732.9,2732.5,0.58134626]
[1645280697704,0.35330567,2732.8,2732.5,0.58134626]
[1645280697901,0.63442486,2733.1,2732.5,0.58134626]
[1645280698103,0.35331491,2733.0,2732.5,0.58134626]
[1645280699304,0.35331491,2733.0,2732.5,1.49638626]
[1645280700048,0.00332248,2733.4,2732.5,1.49638626]
[1645280700445,0.00332248,2733.4,2732.5,0.58134626]
[1645280700845,0.35302357,2733.5,2733.0,0.54324623]
[1645280701046,0.00332267,2733.4,2733.0,0.54324623]
[1645280701451,0.35634624,2733.4,2733.0,0.54324623]
[1645280701649,0.35302357,2733.3,2733.0,0.54324623]
[1645280701849,0.00332267,2733.4,2733.0,0.54324623]
[1645280701850,0.35302357,2733.2,2733.0,0.54324623]
[1645280702049,0.69262472,2733.8,2733.0,0.54324623]
[1645280702050,0.35302357,2733.1,2733.0,0.54324623]
[1645280703699,0.35302357,2733.1,2732.5,1.13]
[1645280703901,0.35302357,2733.0,2732.5,1.13]
[1645280704099,0.00332276,2733.4,2732.5,1.13]
[1645280704501,0.34831866,2733.5,2732.5,1.13]
[1645280704700,0.00332267,2733.4,2732.7,0.60828794]
[1645280704905,0.35164133,2733.4,2732.7,0.60828794]
[1645280705102,0.34831866,2733.3,2732.7,0.60828794]
[1645280705301,0.34831866,2733.2,2732.7,0.60828794]
[1645280705501,0.34831866,2733.2,2732.7,0.90828794]
[1645280705802,0.52893917,2733.6,2732.7,0.60828794]
[1645280706002,0.00332267,2733.4,2732.7,0.90828794]
[1645280707003,0.34850305,2733.5,2732.7,0.90828794]
[1645280707264,0.00332276,2733.4,2732.7,0.90828794]
[1645280708052,0.34850305,2733.5,2732.7,0.90828794]
[1645280708451,0.00332276,2733.4,2732.7,0.90828794]
[1645280708850,0.00332276,2733.4,2732.9,0.01371103]
[1645280709053,0.00332276,2733.4,2733.2,0.58618245]
[1645280709254,0.34850305,2733.5,2733.2,0.58618245]
[1645280709454,0.34850305,2733.4,2732.9,0.01371103]
[1645280709653,0.34850305,2733.3,2732.9,0.01371103]
[1645280709852,0.34850305,2733.2,2732.9,0.01371103]
[1645280710061,0.00332286,2733.4,2733.0,5.527]
[1645280710258,0.00332286,2733.4,2733.0,5.827]
[1645280710456,0.00332286,2733.4,2733.1,2.52561548]
[1645280710655,0.34834577,2734.2,2733.2,0.56427896]
[1645280710855,4.28179902,2734.9,2733.2,0.56427896]
[1645280710856,0.34834577,2734.1,2733.2,1.75278836]
[1645280711120,0.00332291,2733.4,2733.3,1.1885094]
[1645280711320,0.00332291,2733.4,2733.3,1.7714]
[1645280711521,2.291e-05,2733.4,2733.3,2.95989292]
[1645280711723,2.291e-05,2733.4,2733.3,33.30560928]
[1645280711920,0.34831307,2734.5,2733.3,23.89107928]
[1645280712119,0.00332299,2733.5,2733.4,16.11849292]
[1645280712326,0.34831307,2734.7,2733.5,8.5]
[1645280712522,0.34831307,2734.6,2733.8,5.0]
[1645280712725,0.34831307,2734.5,2734.0,0.9144492]
[1645280712922,0.69262472,2735.0,2734.4,0.61141938]
[1645280713123,0.69262472,2734.8,2734.2,0.527]
[1645280713421,0.34815775,2734.7,2734.2,0.527]
[1645280713619,0.34815775,2734.6,2734.2,0.527]
[1645280713821,0.34815775,2734.5,2734.1,0.91452]
[1645280714020,0.34815775,2734.4,2734.1,0.91452]
[1645280714221,0.69262472,2735.1,2734.2,0.3]
[1645280714421,1.04013987,2735.1,2734.5,0.5812855]
[1645280714849,0.69262472,2735.0,2734.1,0.91452]
[1645280715748,0.34751515,2734.9,2734.1,0.91452]
[1645280715952,0.34751515,2734.8,2734.1,0.91452]
[1645280716149,0.34751515,2734.7,2734.3,0.65833998]
[1645280716348,0.34751515,2734.6,2734.3,0.65833998]
[1645280716549,0.34751515,2734.5,2734.3,0.65833998]
[1645280716750,0.00332269,2734.6,2734.3,0.65833998]
[1645280716949,0.00332269,2734.6,2734.3,1.54653998]
[1645280717351,0.00332269,2734.6,2734.2,0.78273372]
[1645280717760,0.34707013,2735.0,2734.2,0.78273372]
[1645280717950,0.00306558,2734.5,2734.2,0.78273372]
[1645280718150,0.00306558,2734.5,2734.2,0.5937281]
[1645280718603,0.35013571,2734.5,2734.2,0.60619342]
[1645280718807,0.00306558,2734.5,2734.2,0.60619342]
[1645280719003,0.69262472,2735.2,2734.2,0.60619342]
[1645280719004,0.31532109,2735.1,2734.2,0.60619342]
[1645280719206,0.93082305,2735.5,2734.2,0.60619342]
[1645280719207,0.00306559,2734.5,2734.3,0.91444]
[1645280719407,0.00306559,2734.5,2734.3,1.44144]
[1645280719609,0.00306559,2734.5,2734.4,3.5]
[1645280719906,0.00306559,2734.5,2734.4,5.027]
[1645280720104,0.31490795,2735.6,2734.5,0.91425]
[1645280720310,8.34539909,2735.9,2734.7,0.91425]
[1645280720311,0.31490795,2735.5,2734.7,0.91425]
[1645280720507,7.50467545,2735.9,2734.9,0.9140932]
[1645280720508,0.31490795,2735.4,2734.9,0.9140932]
[1645280720707,8.00418813,2735.9,2735.4,0.59724585]
[1645280720909,0.31492343,2735.8,2735.4,0.59724585]
[1645280721511,0.00306533,2735.7,2735.4,0.59724585]
[1645280721908,0.31798876,2735.7,2735.4,0.59724585]
[1645280722106,0.31492343,2735.6,2735.4,0.59724585]
[1645280722356,0.00306533,2735.7,2735.5,4.027]
[1645280722559,0.30722372,2736.2,2735.9,0.64195978]
[1645280723656,0.30722372,2736.2,2735.9,1.55584978]
[1645280724055,0.31031162,2736.2,2735.9,1.55584978]
[1645280724254,0.0030879,2736.2,2735.9,1.55584978]
[1645280724457,0.0030879,2736.2,2736.0,0.527]
[1645280724860,0.00744162,2736.4,2736.0,0.527]
[1645280725055,0.00744162,2736.8,2736.0,0.527]
[1645280725256,0.00308961,2736.2,2736.0,4.027]
[1645280725467,0.00308961,2736.2,2736.1,0.62550206]
[1645280726211,0.00744162,2736.8,2736.2,0.91377]
[1645280726411,3.1442,2737.1,2736.2,0.91377]
[1645280726412,0.00308545,2736.3,2736.2,0.91377]
[1645280727212,0.00308545,2736.3,2736.2,4.71377]
[1645280727414,0.00744162,2737.1,2736.9,0.55065686]
[1645280727614,0.30636274,2737.0,2736.9,0.16444667]
[1645280727812,0.30636274,2737.0,2736.3,0.527]
[1645280728015,0.71609173,2737.4,2736.3,0.527]
[1645280728016,0.31380436,2736.9,2736.3,0.527]
[1645280728214,0.71609173,2737.4,2736.3,0.527]
[1645280728215,0.00744162,2737.1,2736.3,0.527]
[1645280728412,0.00744162,2736.8,2736.3,0.527]
[1645280728613,0.00744162,2737.1,2736.5,0.91366]
[1645280728812,0.00308531,2736.8,2736.5,0.91366]
[1645280729012,0.00308531,2736.8,2736.7,0.60392121]
[1645280729775,0.00744162,2737.1,2736.7,0.60392121]
[1645280729965,0.00309717,2736.9,2736.7,0.60392121]
[1645280730869,0.01982843,2737.3,2736.7,1.13092121]
[1645280731069,0.00744162,2737.5,2736.7,1.13092121]
[1645280731270,0.00309715,2736.9,2736.7,1.13092121]
[1645280731870,0.00309715,2736.9,2736.7,2.04455121]
[1645280732170,0.00744162,2737.5,2736.7,2.04455121]
[1645280732369,0.00309715,2736.9,2736.7,2.04455121]
[1645280732577,0.00309715,2736.9,2736.7,1.13092121]
[1645280733370,0.00744162,2737.5,2736.7,1.13092121]
[1645280733602,0.00308476,2736.9,2736.7,1.13092121]
[1645280734601,0.00744162,2737.5,2736.7,1.13092121]
[1645280734802,0.00308476,2736.9,2736.7,1.13092121]
[1645280735606,0.00308476,2736.9,2736.7,0.527]
[1645280735808,0.62908868,2737.1,2736.7,0.527]
[1645280736007,0.00308476,2736.9,2736.7,0.527]
[1645280736408,0.00308476,2736.9,2736.3,1.6892]
[1645280736609,0.00308476,2736.9,2735.7,7.6961]
[1645280736907,0.30157344,2737.0,2736.1,0.52525274]
[1645280737107,0.59105209,2736.6,2735.9,0.91389]
[1645280737365,0.00308574,2736.4,2735.7,2.53982645]
[1645280737562,0.00308574,2736.4,2735.6,3.9723354]
[1645280737760,0.00308574,2736.4,2735.6,1.1413]
[1645280737956,0.00308574,2736.4,2735.0,4.1341]
[1645280738156,0.62037213,2735.8,2735.2,0.55040164]
[1645280738361,0.62037213,2735.8,2734.7,1.2104]
[1645280739357,0.62037213,2735.8,2735.0,0.62318149]
[1645280739556,0.00300779,2735.4,2735.0,0.62318149]
[1645280739957,0.00300779,2735.4,2734.9,0.91424]
[1645280740161,0.00300779,2735.4,2734.7,3.03884]
[1645280740556,0.62037213,2735.8,2734.8,0.3]
[1645280740757,0.62037213,2735.8,2734.9,0.91424]
[1645280740758,0.00300779,2735.2,2734.9,0.91424]
[1645280741005,0.00300779,2735.2,2735.0,0.53066029]
[1645280741803,0.00744162,2736.1,2735.1,0.91417]
[1645280742003,0.00300778,2735.2,2735.1,5.24117]
[1645280742303,0.00300778,2735.2,2735.1,2.65521]
[1645280742703,0.00300778,2735.2,2735.1,6.24132616]
[1645280742902,0.00744162,2736.4,2735.1,5.32715616]
[1645280743106,0.00744162,2736.4,2735.3,0.91395]
[1645280743303,0.01180178,2736.3,2735.4,4.41395]
[1645280743804,0.01180178,2736.3,2736.0,0.59496526]
[1645280744204,0.00744162,2736.4,2736.0,0.59496526]
[1645280744402,0.00295385,2736.3,2736.0,0.59496526]
[1645280745054,0.00295385,2736.3,2735.6,0.91397]
[1645280745356,0.00744162,2736.4,2735.6,0.91397]
[1645280745554,0.00295389,2736.1,2735.6,0.91397]
[1645280746357,0.00295389,2736.1,2735.6,0.81397]
[1645280746557,0.00744162,2736.4,2735.6,0.81397]
[1645280746758,0.00295866,2736.0,2735.6,0.81397]
[1645280746958,0.00295866,2736.0,2735.4,0.827]
[1645280747157,0.00295866,2736.0,2735.4,1.127]
[1645280747557,0.00295866,2736.0,2735.4,0.6]
[1645280747760,0.00744162,2736.4,2735.4,0.3]
[1645280748058,0.00744162,2736.4,2735.2,8.41556491]
[1645280748059,0.00296032,2735.8,2735.2,8.11556491]
[1645280748261,0.00296032,2735.8,2735.2,4.61556491]
[1645280748905,0.00744162,2736.4,2735.2,4.6023]
[1645280749304,0.00744162,2736.4,2735.5,0.63214984]
[1645280749305,0.00296037,2735.6,2735.5,0.63214984]
[1645280750205,0.00744162,2736.0,2735.5,0.63214984]
[1645280750406,0.00238065,2735.7,2735.5,0.63214984]
[1645280750607,0.00238065,2735.7,2735.6,3.5]
[1645280750806,0.00238065,2735.7,2735.6,3.8]
[1645280751006,0.00238065,2735.7,2735.6,1.3]
[1645280751408,0.66602136,2736.6,2736.0,0.57498349]
[1645280751607,0.00238041,2735.8,2735.6,3.8]
[1645280751810,0.00238041,2735.8,2735.7,0.91398]
[1645280752275,0.00238041,2735.8,2735.7,1.21398]
[1645280752455,0.00744162,2736.5,2735.7,1.21398]
[1645280752655,0.26012953,2736.4,2735.7,1.81855753]
[1645280752855,0.00238041,2735.9,2735.7,1.81855753]
[1645280753657,0.0095202,2736.3,2735.7,1.81855753]
[1645280753864,0.00744162,2736.5,2735.7,1.81855753]
[1645280754058,0.0030914,2735.9,2735.7,1.81855753]
[1645280754460,0.0030914,2735.9,2735.7,1.21398]
[1645280755058,0.00744162,2736.5,2735.7,1.21398]
[1645280755260,0.00310393,2735.9,2735.7,1.21398]
[1645280756110,0.00744162,2736.1,2735.7,1.21398]
[1645280756309,0.00310393,2735.9,2735.7,1.21398]
[1645280757317,0.57761908,2736.1,2735.7,1.21398]
[1645280757318,0.00744162,2736.0,2735.7,1.21398]
[1645280757512,0.00310393,2735.9,2735.7,1.21398]
[1645280758512,0.26115381,2736.2,2735.8,0.01690273]
[1645280758709,0.26115381,2736.1,2735.8,0.01690273]
[1645280758915,0.00236853,2735.9,2735.8,0.01116259]
[1645280759313,0.26352234,2735.9,2735.8,0.01116259]
[1645280759785,0.26115381,2735.9,2735.8,0.01116259]
[1645280759967,0.00744162,2736.1,2735.8,0.01116259]
[1645280759968,0.26352234,2736.0,2735.8,0.01116259]
[1645280760167,0.26115381,2735.9,2735.8,0.01116259]
[1645280763503,1.17552381,2735.9,2734.9,1.4605]
[1645280763704,1.17552381,2735.9,2735.0,1.28179059]
[1645280763705,0.26115381,2735.8,2735.0,1.28179059]
[1645280764210,0.26115381,2735.8,2735.1,1.28179059]
[1645280764211,1.17555381,2735.8,2735.1,1.28179059]
[1645280764408,0.5592493,2735.0,2734.5,1.1809]
[1645280764805,0.26115381,2734.9,2734.6,1.2845078]
[1645280765106,0.26115381,2734.9,2734.7,0.3]
[1645280765304,0.00316703,2735.6,2734.8,1.2845078]
[1645280765505,0.26355879,2735.6,2734.8,1.2845078]
[1645280765703,0.26039176,2735.5,2734.8,1.5845078]
[1645280765905,0.26039176,2735.4,2734.9,1.5845078]
[1645280766103,0.69262472,2735.8,2735.0,1.2845078]
[1645280766104,0.26346896,2735.3,2735.0,1.2845078]
[1645280766304,0.26039176,2735.2,2735.0,1.5845078]
[1645280766506,0.0030772,2735.3,2735.1,1.2845078]
[1645280766711,0.0030772,2735.3,2734.5,0.1827]
[1645280766905,0.26039824,2735.3,2734.6,1.28825327]
[1645280767105,0.26039824,2735.2,2734.7,1.28825327]
[1645280767360,0.26039824,2735.1,2734.8,1.28825327]
[1645280767557,0.26039824,2735.0,2734.9,1.28825327]
[1645280767754,0.21039824,2735.0,2734.7,0.55514137]
[1645280767953,0.0029164,2735.3,2734.4,5.32862]
[1645280768253,0.56727731,2735.5,2734.4,1.82862]
[1645280768456,0.00291647,2735.0,2734.4,5.32862]
[1645280768654,0.00291647,2735.0,2734.4,1.82862]
[1645280769054,0.00291647,2735.0,2734.7,0.65526197]
[1645280769461,0.69262472,2735.6,2734.7,0.65526197]
[1645280769659,2.1831008,2735.9,2734.7,1.86958197]
[1645280769660,0.00292791,2735.0,2734.7,1.86958197]
[1645280769856,0.00292791,2735.0,2734.8,0.3]
[1645280770660,0.69262472,2735.8,2735.0,0.91422]
[1645280771007,0.69262472,2735.8,2734.8,1.8284]
[1645280771208,0.69262472,2735.7,2734.7,0.65526197]
[1645280771812,0.69262472,2735.6,2734.7,0.65526197]
[1645280772108,2.01750316,2735.9,2734.7,0.65526197]
[1645280772109,0.00296402,2735.3,2734.7,0.65526197]
[1645280773006,0.6289041,2735.4,2734.5,0.4827]
[1645280773207,0.00296432,2735.1,2734.5,0.6]
[1645280773809,0.00296432,2735.1,2734.4,0.1827]